[Event "Titled Tuesday Blitz November 01 Late 2022"]
[White "Ivic, Velimir"]
[Black "Sokolovsky, Yahli"]
[WhiteFideId "950122"]
[BlackFideId "2820242"]
[WhiteElo "2625"]
[BlackElo "2316"]
[Result "1-0"]
[Round "05"]
[TimeControl "180+1"]
[Date "2022.11.01"]
[WhiteClock "0:01:55"]
[BlackClock "0:00:09"]

1. e4 {[%clk 0:03:00]}  d6 {[%clk 0:02:59]} 2. d4 {[%clk 0:03:00]}  g6 {[%clk 0:03:00]} 3. Nc3 {[%clk 0:03:00]}  Bg7 {[%clk 0:03:01]} 4. Be3 {[%clk 0:03:00]}  a6 {[%clk 0:03:01]} 5. g4 {[%clk 0:03:01]}  b5 {[%clk 0:02:59]} 6. Bg2 {[%clk 0:03:01]}  Bb7 {[%clk 0:02:59]} 7. h4 {[%clk 0:03:02]}  Nf6 {[%clk 0:02:28]} 8. h5 {[%clk 0:02:43]}  gxh5 {[%clk 0:02:08]} 9. g5 {[%clk 0:02:37]}  Ng4 {[%clk 0:02:07]} 10. Bc1 {[%clk 0:02:38]}  f5 {[%clk 0:01:47]} 11. Rxh5 {[%clk 0:02:36]}  c5 {[%clk 0:01:25]} 12. exf5 {[%clk 0:02:34]}  Bxg2 {[%clk 0:01:06]} 13. Qxg4 {[%clk 0:02:34]}  cxd4 {[%clk 0:01:06]} 14. Qxg2 {[%clk 0:02:34]}  dxc3 {[%clk 0:01:06]} 15. f6 {[%clk 0:02:27]}  exf6 {[%clk 0:00:39]} 16. Qxa8 {[%clk 0:02:24]}  O-O {[%clk 0:00:40]} 17. Qd5+ {[%clk 0:02:24]}  Kh8 {[%clk 0:00:39]} 18. g6 {[%clk 0:02:06]}  Qe8+ {[%clk 0:00:34]} 19. Ne2 {[%clk 0:02:06]}  Qxg6 {[%clk 0:00:34]} 20. Qf5 {[%clk 0:02:02]}  Kg8 {[%clk 0:00:23]} 21. Qxg6 {[%clk 0:01:57]}  hxg6 {[%clk 0:00:24]} 22. Rh3 {[%clk 0:01:57]}  Nc6 {[%clk 0:00:24]} 23. Nxc3 {[%clk 0:01:56]}  Nd4 {[%clk 0:00:24]} 24. Kd1 {[%clk 0:01:56]}  b4 {[%clk 0:00:23]} 25. Nd5 {[%clk 0:01:56]}  Re8 {[%clk 0:00:20]} 26. Be3 {[%clk 0:01:55]}  Nf5 {[%clk 0:00:20]} 27. Kd2 {[%clk 0:01:56]}  a5 {[%clk 0:00:20]} 28. Re1 {[%clk 0:01:55]}  Re5 {[%clk 0:00:20]} 29. Nf4 {[%clk 0:01:56]}  Kf7 {[%clk 0:00:17]} 30. Nd3 {[%clk 0:01:56]}  Re4 {[%clk 0:00:15]} 31. Bb6 {[%clk 0:01:56]}  Rc4 {[%clk 0:00:15]} 32. Bxa5 {[%clk 0:01:56]}  Bh6+ {[%clk 0:00:14]} 33. Kd1 {[%clk 0:01:55]}  b3 {[%clk 0:00:10]} 34. axb3 {[%clk 0:01:55]}  Rc8 {[%clk 0:00:09]} 35. Bd2 {[%clk 0:01:54]}  Ra8 {[%clk 0:00:09]} 36. Bxh6 {[%clk 0:01:55]} 1-0


[Site "https://www.chess.com"]

[Event "Titled Tuesday Blitz November 01 Late 2022"]
[White "Jaferian, Koosha"]
[Black "Araujo Sanchez, Josue"]
[WhiteFideId "12507440"]
[BlackFideId "6416896"]
[WhiteElo "2127"]
[BlackElo "2370"]
[Result "0-1"]
[Round "05"]
[TimeControl "180+1"]
[Date "2022.11.02"]
[WhiteClock "0:00:56"]
[BlackClock "0:01:35"]

1. e4 {[%clk 0:03:00]}  c5 {[%clk 0:02:55]} 2. Nc3 {[%clk 0:03:00]}  g6 {[%clk 0:02:53]} 3. d4 {[%clk 0:03:00]}  cxd4 {[%clk 0:02:52]} 4. Qxd4 {[%clk 0:03:01]}  Nf6 {[%clk 0:02:52]} 5. Nf3 {[%clk 0:03:02]}  Bg7 {[%clk 0:02:49]} 6. e5 {[%clk 0:03:01]}  Nc6 {[%clk 0:02:50]} 7. Qa4 {[%clk 0:03:00]}  Ng8 {[%clk 0:02:42]} 8. Bf4 {[%clk 0:03:00]}  Nh6 {[%clk 0:02:39]} 9. O-O-O {[%clk 0:02:57]}  O-O {[%clk 0:02:39]} 10. h3 {[%clk 0:02:56]}  d6 {[%clk 0:02:37]} 11. exd6 {[%clk 0:02:49]}  exd6 {[%clk 0:02:35]} 12. Bxd6 {[%clk 0:02:25]}  Re8 {[%clk 0:02:32]} 13. Nb5 {[%clk 0:02:16]}  Nf5 {[%clk 0:02:25]} 14. Bf4 {[%clk 0:02:07]}  Qb6 {[%clk 0:02:23]} 15. Qb3 {[%clk 0:01:58]}  Be6 {[%clk 0:02:20]} 16. Bc4 {[%clk 0:01:54]}  Na5 {[%clk 0:02:20]} 17. Qb4 {[%clk 0:01:22]}  Nxc4 {[%clk 0:02:17]} 18. c3 {[%clk 0:01:21]}  Qxf2 {[%clk 0:02:10]} 19. Nc7 {[%clk 0:01:21]}  a5 {[%clk 0:02:09]} 20. Qb5 {[%clk 0:01:19]}  a4 {[%clk 0:01:38]} 21. Nxe8 {[%clk 0:01:01]}  a3 {[%clk 0:01:37]} 22. Nxg7 {[%clk 0:00:57]}  axb2+ {[%clk 0:01:37]} 23. Kb1 {[%clk 0:00:56]}  Na3# {[%clk 0:01:35]} 0-1


[Site "https://www.chess.com"]

[Event "Titled Tuesday Blitz November 01 Late 2022"]
[White "Jobava, Baadur"]
[Black "Goltsev, Dmitry"]
[WhiteFideId "13601520"]
[BlackFideId "24176710"]
[WhiteElo "2582"]
[BlackElo "2257"]
[Result "0-1"]
[Round "05"]
[TimeControl "180+1"]
[Date "2022.11.01"]
[WhiteClock "0:01:45"]
[BlackClock "0:01:54"]

1. b3 {[%clk 0:03:00]}  Nf6 {[%clk 0:02:59]} 2. Bb2 {[%clk 0:03:01]}  g6 {[%clk 0:02:59]} 3. c4 {[%clk 0:03:01]}  Bg7 {[%clk 0:03:00]} 4. g3 {[%clk 0:03:02]}  Nh5 {[%clk 0:03:00]} 5. d4 {[%clk 0:02:59]}  O-O {[%clk 0:02:59]} 6. Bg2 {[%clk 0:02:59]}  Nc6 {[%clk 0:02:56]} 7. Nf3 {[%clk 0:02:55]}  d6 {[%clk 0:02:55]} 8. O-O {[%clk 0:02:54]}  e5 {[%clk 0:02:55]} 9. dxe5 {[%clk 0:02:54]}  dxe5 {[%clk 0:02:52]} 10. Nfd2 {[%clk 0:02:24]}  Nf6 {[%clk 0:02:46]} 11. Bxc6 {[%clk 0:02:19]}  bxc6 {[%clk 0:02:47]} 12. Bxe5 {[%clk 0:02:19]}  Bh3 {[%clk 0:02:48]} 13. Re1 {[%clk 0:02:18]}  Re8 {[%clk 0:02:47]} 14. Bb2 {[%clk 0:02:04]}  Qe7 {[%clk 0:02:43]} 15. Nf3 {[%clk 0:01:56]}  Rad8 {[%clk 0:02:43]} 16. Qc1 {[%clk 0:01:57]}  Qc5 {[%clk 0:02:30]} 17. Nbd2 {[%clk 0:01:46]}  Ng4 {[%clk 0:02:22]} 18. e3 {[%clk 0:01:46]}  Qf5 {[%clk 0:01:57]} 19. Bxg7 {[%clk 0:01:45]}  Rxd2 {[%clk 0:01:54]} 0-1


[Site "https://www.chess.com"]

[Event "Titled Tuesday Blitz November 01 Late 2022"]
[White "Karas, Marek"]
[Black "McConnell, Griffin"]
[WhiteFideId "14928558"]
[BlackFideId "30942551"]
[WhiteElo "2220"]
[BlackElo "2337"]
[Result "1-0"]
[Round "05"]
[TimeControl "180+1"]
[Date "2022.11.02"]
[WhiteClock "0:00:19"]
[BlackClock "0:00:04"]

1. d4 {[%clk 0:02:57]}  d5 {[%clk 0:03:00]} 2. c4 {[%clk 0:02:55]}  Nc6 {[%clk 0:02:57]} 3. Nf3 {[%clk 0:02:47]}  Bg4 {[%clk 0:02:56]} 4. cxd5 {[%clk 0:02:46]}  Bxf3 {[%clk 0:02:56]} 5. gxf3 {[%clk 0:02:47]}  Qxd5 {[%clk 0:02:56]} 6. e3 {[%clk 0:02:46]}  e5 {[%clk 0:02:56]} 7. Nc3 {[%clk 0:02:46]}  Bb4 {[%clk 0:02:56]} 8. Bd2 {[%clk 0:02:47]}  Bxc3 {[%clk 0:02:55]} 9. bxc3 {[%clk 0:02:47]}  Qd6 {[%clk 0:02:51]} 10. Rb1 {[%clk 0:02:44]}  b6 {[%clk 0:02:41]} 11. Rg1 {[%clk 0:02:41]}  g6 {[%clk 0:02:37]} 12. Qa4 {[%clk 0:02:33]}  Ne7 {[%clk 0:02:34]} 13. h4 {[%clk 0:02:23]}  h5 {[%clk 0:02:30]} 14. Bb5 {[%clk 0:02:20]}  O-O {[%clk 0:02:28]} 15. Qc4 {[%clk 0:02:12]}  Rad8 {[%clk 0:02:03]} 16. Rd1 {[%clk 0:01:53]}  Na5 {[%clk 0:01:45]} 17. Qe2 {[%clk 0:01:48]}  Nf5 {[%clk 0:01:35]} 18. e4 {[%clk 0:01:31]}  Ng7 {[%clk 0:01:26]} 19. Bg5 {[%clk 0:01:28]}  Rb8 {[%clk 0:01:06]} 20. Qe3 {[%clk 0:01:04]}  c6 {[%clk 0:01:02]} 21. Be2 {[%clk 0:01:01]}  exd4 {[%clk 0:00:46]} 22. cxd4 {[%clk 0:01:00]}  Qb4+ {[%clk 0:00:34]} 23. Kf1 {[%clk 0:01:00]}  Nc4 {[%clk 0:00:33]} 24. Qb3 {[%clk 0:00:56]}  Qxb3 {[%clk 0:00:32]} 25. axb3 {[%clk 0:00:57]}  Nd6 {[%clk 0:00:31]} 26. Be7 {[%clk 0:00:55]}  Rfd8 {[%clk 0:00:29]} 27. Bxd8 {[%clk 0:00:55]}  Rxd8 {[%clk 0:00:30]} 28. Kg2 {[%clk 0:00:48]}  Ne6 {[%clk 0:00:30]} 29. Kg3 {[%clk 0:00:47]}  Kg7 {[%clk 0:00:25]} 30. d5 {[%clk 0:00:43]}  cxd5 {[%clk 0:00:25]} 31. Rxd5 {[%clk 0:00:44]}  f5 {[%clk 0:00:11]} 32. Rgd1 {[%clk 0:00:42]}  Nf7 {[%clk 0:00:08]} 33. Rxd8 {[%clk 0:00:42]}  Nfxd8 {[%clk 0:00:09]} 34. Rd7+ {[%clk 0:00:41]}  Kf6 {[%clk 0:00:09]} 35. Rxa7 {[%clk 0:00:42]}  f4+ {[%clk 0:00:09]} 36. Kg2 {[%clk 0:00:41]}  Ke5 {[%clk 0:00:07]} 37. Bc4 {[%clk 0:00:40]}  Nc5 {[%clk 0:00:07]} 38. Rg7 {[%clk 0:00:36]}  Nc6 {[%clk 0:00:05]} 39. Rxg6 {[%clk 0:00:35]}  Nd4 {[%clk 0:00:06]} 40. Rg5+ {[%clk 0:00:35]}  Kf6 {[%clk 0:00:06]} 41. Rxh5 {[%clk 0:00:34]}  Kg6 {[%clk 0:00:06]} 42. Rg5+ {[%clk 0:00:33]}  Kf6 {[%clk 0:00:06]} 43. e5+ {[%clk 0:00:32]}  Ke7 {[%clk 0:00:05]} 44. Rg7+ {[%clk 0:00:32]}  Kf8 {[%clk 0:00:05]} 45. Rg6 {[%clk 0:00:29]}  Ke7 {[%clk 0:00:05]} 46. Rxb6 {[%clk 0:00:29]}  Nf5 {[%clk 0:00:03]} 47. Kh3 {[%clk 0:00:27]}  Nd7 {[%clk 0:00:01]} 48. Rb7 {[%clk 0:00:26]}  Kd8 {[%clk 0:00:02]} 49. e6 {[%clk 0:00:25]}  Ne5 {[%clk 0:00:02]} 50. Rf7 {[%clk 0:00:20]}  Nxf7 {[%clk 0:00:02]} 51. exf7 {[%clk 0:00:20]}  Ke7 {[%clk 0:00:03]} 52. Kg4 {[%clk 0:00:20]}  Nh6+ {[%clk 0:00:03]} 53. Kxf4 {[%clk 0:00:20]}  Kf8 {[%clk 0:00:03]} 54. b4 {[%clk 0:00:19]}  Kg7 {[%clk 0:00:04]} 55. b5 {[%clk 0:00:19]}  Kf8 {[%clk 0:00:05]} 56. b6 {[%clk 0:00:20]}  Kg7 {[%clk 0:00:05]} 57. b7 {[%clk 0:00:20]}  Kh7 {[%clk 0:00:05]} 58. b8=Q {[%clk 0:00:20]}  Nxf7 {[%clk 0:00:04]} 59. Bxf7 {[%clk 0:00:20]}  Kh6 {[%clk 0:00:04]} 60. Qh8# {[%clk 0:00:19]} 1-0


[Site "https://www.chess.com"]

[Event "Titled Tuesday Blitz November 01 Late 2022"]
[White "Kirillov, Dmitry"]
[Black "Korchmar, Vasiliy"]
[WhiteFideId "34180572"]
[BlackFideId "24131750"]
[WhiteElo "2095"]
[BlackElo "2370"]
[Result "1/2-1/2"]
[Round "05"]
[TimeControl "180+1"]
[Date "2022.11.02"]
[WhiteClock "0:00:06"]
[BlackClock "0:00:04"]

1. d4 {[%clk 0:03:00]}  d5 {[%clk 0:02:59]} 2. Nf3 {[%clk 0:03:01]}  Nf6 {[%clk 0:02:59]} 3. Bf4 {[%clk 0:03:02]}  c5 {[%clk 0:02:58]} 4. e3 {[%clk 0:03:02]}  Nc6 {[%clk 0:02:57]} 5. Nbd2 {[%clk 0:03:03]}  cxd4 {[%clk 0:02:56]} 6. exd4 {[%clk 0:03:03]}  Qb6 {[%clk 0:02:56]} 7. Nb3 {[%clk 0:03:03]}  Bg4 {[%clk 0:02:56]} 8. Be2 {[%clk 0:02:59]}  e6 {[%clk 0:02:56]} 9. c3 {[%clk 0:02:59]}  Be7 {[%clk 0:02:52]} 10. O-O {[%clk 0:02:59]}  O-O {[%clk 0:02:52]} 11. Ne1 {[%clk 0:02:47]}  Bxe2 {[%clk 0:02:51]} 12. Qxe2 {[%clk 0:02:48]}  Rfe8 {[%clk 0:02:49]} 13. Nd3 {[%clk 0:02:45]}  Nd7 {[%clk 0:02:48]} 14. Rfe1 {[%clk 0:02:41]}  Rac8 {[%clk 0:02:48]} 15. h3 {[%clk 0:02:34]}  Bf8 {[%clk 0:02:37]} 16. Qf3 {[%clk 0:02:29]}  a5 {[%clk 0:01:59]} 17. Rac1 {[%clk 0:02:05]}  a4 {[%clk 0:01:59]} 18. Nd2 {[%clk 0:02:01]}  a3 {[%clk 0:01:48]} 19. b4 {[%clk 0:01:56]}  Qb5 {[%clk 0:01:35]} 20. Nc5 {[%clk 0:01:53]}  Nxc5 {[%clk 0:01:29]} 21. bxc5 {[%clk 0:01:54]}  Na5 {[%clk 0:01:25]} 22. Rb1 {[%clk 0:01:49]}  Qa4 {[%clk 0:01:24]} 23. Qd1 {[%clk 0:01:41]}  Qd7 {[%clk 0:01:18]} 24. Nb3 {[%clk 0:01:34]}  Nc4 {[%clk 0:01:16]} 25. Nd2 {[%clk 0:01:35]}  Nb2 {[%clk 0:01:09]} 26. Qg4 {[%clk 0:01:18]}  b6 {[%clk 0:00:46]} 27. cxb6 {[%clk 0:01:12]}  Rc6 {[%clk 0:00:31]} 28. Bc7 {[%clk 0:01:05]}  Bd6 {[%clk 0:00:29]} 29. Bxd6 {[%clk 0:01:06]}  Rxd6 {[%clk 0:00:27]} 30. c4 {[%clk 0:01:01]}  dxc4 {[%clk 0:00:26]} 31. Ne4 {[%clk 0:01:01]}  f5 {[%clk 0:00:15]} 32. Nf6+ {[%clk 0:01:01]}  Kh8 {[%clk 0:00:09]} 33. Nxd7 {[%clk 0:00:57]}  fxg4 {[%clk 0:00:09]} 34. Ne5 {[%clk 0:00:57]}  Rxb6 {[%clk 0:00:06]} 35. hxg4 {[%clk 0:00:58]}  Rc8 {[%clk 0:00:04]} 36. Rec1 {[%clk 0:00:50]}  Kg8 {[%clk 0:00:03]} 37. Rc3 {[%clk 0:00:44]}  Rd6 {[%clk 0:00:03]} 38. Rxa3 {[%clk 0:00:41]}  Rxd4 {[%clk 0:00:03]} 39. Rxb2 {[%clk 0:00:37]}  c3 {[%clk 0:00:02]} 40. Rc2 {[%clk 0:00:36]}  Rd1+ {[%clk 0:00:03]} 41. Kh2 {[%clk 0:00:36]}  Rd2 {[%clk 0:00:04]} 42. Raxc3 {[%clk 0:00:35]}  Rxc2 {[%clk 0:00:04]} 43. Rxc8+ {[%clk 0:00:17]}  Rxc8 {[%clk 0:00:04]} 44. a4 {[%clk 0:00:17]}  Ra8 {[%clk 0:00:04]} 45. Kg3 {[%clk 0:00:18]}  Rxa4 {[%clk 0:00:04]} 46. f3 {[%clk 0:00:18]}  Ra5 {[%clk 0:00:04]} 47. Nc6 {[%clk 0:00:18]}  Ra6 {[%clk 0:00:04]} 48. Ne5 {[%clk 0:00:16]}  Kf8 {[%clk 0:00:04]} 49. Kf4 {[%clk 0:00:14]}  Ke7 {[%clk 0:00:04]} 50. Kg3 {[%clk 0:00:13]}  Ra2 {[%clk 0:00:04]} 51. Nc6+ {[%clk 0:00:12]}  Kd6 {[%clk 0:00:04]} 52. Nd4 {[%clk 0:00:13]}  Rd2 {[%clk 0:00:03]} 53. Nb5+ {[%clk 0:00:11]}  Kc5 {[%clk 0:00:03]} 54. Nc3 {[%clk 0:00:11]}  Rd7 {[%clk 0:00:03]} 55. Ne4+ {[%clk 0:00:12]}  Kd5 {[%clk 0:00:04]} 56. Nc3+ {[%clk 0:00:11]}  Kc6 {[%clk 0:00:03]} 57. Ne4 {[%clk 0:00:11]}  Ra7 {[%clk 0:00:04]} 58. Ng5 {[%clk 0:00:11]}  h6 {[%clk 0:00:03]} 59. Nxe6 {[%clk 0:00:11]}  Kd5 {[%clk 0:00:04]} 60. Nf4+ {[%clk 0:00:09]}  Ke5 {[%clk 0:00:05]} 61. Nd3+ {[%clk 0:00:09]}  Kf6 {[%clk 0:00:05]} 62. Nc5 {[%clk 0:00:08]}  Ra1 {[%clk 0:00:06]} 63. Ne4+ {[%clk 0:00:08]}  Ke5 {[%clk 0:00:07]} 64. Nc5 {[%clk 0:00:09]}  Rd1 {[%clk 0:00:05]} 65. Ne4 {[%clk 0:00:07]}  Rc1 {[%clk 0:00:06]} 66. Nf2 {[%clk 0:00:08]}  Rc4 {[%clk 0:00:06]} 67. Nd3+ {[%clk 0:00:08]}  Kf6 {[%clk 0:00:06]} 68. Nf2 {[%clk 0:00:08]}  Ra4 {[%clk 0:00:06]} 69. Ne4+ {[%clk 0:00:08]}  Ke5 {[%clk 0:00:06]} 70. Nc5 {[%clk 0:00:09]}  Rc4 {[%clk 0:00:06]} 71. Nd3+ {[%clk 0:00:09]}  Ke6 {[%clk 0:00:04]} 72. Nf4+ {[%clk 0:00:09]}  Kf7 {[%clk 0:00:05]} 73. Nd5 {[%clk 0:00:08]}  Rc8 {[%clk 0:00:05]} 74. Ne3 {[%clk 0:00:08]}  Rb8 {[%clk 0:00:05]} 75. Nf5 {[%clk 0:00:08]}  Ra8 {[%clk 0:00:06]} 76. Nd6+ {[%clk 0:00:08]}  Ke6 {[%clk 0:00:07]} 77. Ne4 {[%clk 0:00:08]}  Ke5 {[%clk 0:00:07]} 78. Nc5 {[%clk 0:00:08]}  Ra1 {[%clk 0:00:05]} 79. Nd3+ {[%clk 0:00:08]}  Kd4 {[%clk 0:00:05]} 80. Nf2 {[%clk 0:00:07]}  Ra7 {[%clk 0:00:05]} 81. Ne4 {[%clk 0:00:07]}  Re7 {[%clk 0:00:05]} 82. Nd6 {[%clk 0:00:07]}  Ke5 {[%clk 0:00:06]} 83. Ne4 {[%clk 0:00:06]}  Rd7 {[%clk 0:00:05]} 84. Nc5 {[%clk 0:00:05]}  Rd1 {[%clk 0:00:05]} 85. Ne4 {[%clk 0:00:06]}  Rc1 {[%clk 0:00:05]} 86. Nf2 {[%clk 0:00:06]}  Rc4 {[%clk 0:00:04]} 87. Nd3+ {[%clk 0:00:06]} 1/2-1/2


[Site "https://www.chess.com"]

[Event "Titled Tuesday Blitz November 01 Late 2022"]
[White "Kleiman, Jake"]
[Black "Petrovic, Aleksa"]
[WhiteFideId "2020041"]
[BlackFideId "967629"]
[WhiteElo "2597"]
[BlackElo "2242"]
[Result "1-0"]
[Round "05"]
[TimeControl "180+1"]
[Date "2022.11.02"]
[WhiteClock "0:00:54"]
[BlackClock "0:00:05"]

1. e4 {[%clk 0:03:00]}  c5 {[%clk 0:02:54]} 2. c3 {[%clk 0:03:00]}  d5 {[%clk 0:02:51]} 3. exd5 {[%clk 0:03:00]}  Nf6 {[%clk 0:02:50]} 4. d4 {[%clk 0:03:01]}  cxd4 {[%clk 0:02:49]} 5. Nf3 {[%clk 0:03:01]}  Qxd5 {[%clk 0:02:45]} 6. cxd4 {[%clk 0:03:00]}  g6 {[%clk 0:02:40]} 7. Nc3 {[%clk 0:03:01]}  Qd8 {[%clk 0:02:40]} 8. Bc4 {[%clk 0:03:00]}  Bg7 {[%clk 0:02:40]} 9. O-O {[%clk 0:02:59]}  O-O {[%clk 0:02:41]} 10. h3 {[%clk 0:02:59]}  b6 {[%clk 0:02:39]} 11. Bg5 {[%clk 0:02:46]}  Bb7 {[%clk 0:02:38]} 12. Qe2 {[%clk 0:02:44]}  Nbd7 {[%clk 0:02:37]} 13. Rad1 {[%clk 0:02:43]}  Rc8 {[%clk 0:02:35]} 14. Bb3 {[%clk 0:02:41]}  h6 {[%clk 0:01:53]} 15. Bc1 {[%clk 0:02:40]}  Nb8 {[%clk 0:01:44]} 16. Rfe1 {[%clk 0:02:35]}  e6 {[%clk 0:01:38]} 17. Ne5 {[%clk 0:02:32]}  Nc6 {[%clk 0:01:34]} 18. Nxf7 {[%clk 0:01:40]}  Rxf7 {[%clk 0:01:32]} 19. Bxe6 {[%clk 0:01:39]}  Kf8 {[%clk 0:01:14]} 20. d5 {[%clk 0:01:30]}  Ne7 {[%clk 0:01:03]} 21. Bxf7 {[%clk 0:01:26]}  Kxf7 {[%clk 0:01:04]} 22. Qe6+ {[%clk 0:01:26]}  Kf8 {[%clk 0:00:59]} 23. Bxh6 {[%clk 0:01:26]}  Nf5 {[%clk 0:00:47]} 24. Bg5 {[%clk 0:01:14]}  Rc7 {[%clk 0:00:36]} 25. d6 {[%clk 0:01:12]}  Rf7 {[%clk 0:00:29]} 26. d7 {[%clk 0:00:57]}  Re7 {[%clk 0:00:14]} 27. Bxf6 {[%clk 0:00:53]}  Rxe6 {[%clk 0:00:07]} 28. Bxd8 {[%clk 0:00:54]}  Rxe1+ {[%clk 0:00:05]} 29. Rxe1 {[%clk 0:00:54]}  Bc6 {[%clk 0:00:05]} 30. Be7+ {[%clk 0:00:54]} 1-0


[Site "https://www.chess.com"]

[Event "Titled Tuesday Blitz November 01 Late 2022"]
[White "Kollars, Dmitrij"]
[Black "Zivkovic, Nemanja"]
[WhiteFideId "12909572"]
[BlackFideId "942154"]
[WhiteElo "2584"]
[BlackElo "2372"]
[Result "1-0"]
[Round "05"]
[TimeControl "180+1"]
[Date "2022.11.02"]
[WhiteClock "0:00:46"]
[BlackClock "0:00:14"]

1. e4 {[%clk 0:02:20]}  c5 {[%clk 0:02:57]} 2. Nf3 {[%clk 0:02:20]}  d6 {[%clk 0:02:56]} 3. Bb5+ {[%clk 0:02:20]}  Nd7 {[%clk 0:02:56]} 4. a4 {[%clk 0:02:20]}  a6 {[%clk 0:02:46]} 5. Bc4 {[%clk 0:02:19]}  Ngf6 {[%clk 0:02:44]} 6. Nc3 {[%clk 0:02:19]}  e6 {[%clk 0:02:39]} 7. a5 {[%clk 0:02:18]}  b5 {[%clk 0:02:35]} 8. axb6 {[%clk 0:02:19]}  Nxb6 {[%clk 0:02:30]} 9. Be2 {[%clk 0:02:19]}  Bb7 {[%clk 0:02:27]} 10. d3 {[%clk 0:02:19]}  Be7 {[%clk 0:02:25]} 11. O-O {[%clk 0:02:20]}  O-O {[%clk 0:02:24]} 12. b3 {[%clk 0:02:20]}  d5 {[%clk 0:02:19]} 13. exd5 {[%clk 0:02:21]}  exd5 {[%clk 0:02:20]} 14. d4 {[%clk 0:02:21]}  Qc7 {[%clk 0:02:11]} 15. Bb2 {[%clk 0:01:57]}  Ne4 {[%clk 0:02:05]} 16. Na4 {[%clk 0:01:45]}  Bf6 {[%clk 0:01:55]} 17. Nxb6 {[%clk 0:01:44]}  Qxb6 {[%clk 0:01:54]} 18. dxc5 {[%clk 0:01:45]}  Qxc5 {[%clk 0:01:52]} 19. Bxf6 {[%clk 0:01:45]}  Nxf6 {[%clk 0:01:53]} 20. Bd3 {[%clk 0:01:34]}  Ne4 {[%clk 0:01:51]} 21. Qc1 {[%clk 0:01:28]}  Rfe8 {[%clk 0:01:50]} 22. Qa3 {[%clk 0:01:21]}  Rac8 {[%clk 0:01:46]} 23. h3 {[%clk 0:01:17]}  Qxa3 {[%clk 0:01:29]} 24. Rxa3 {[%clk 0:01:17]}  Nc5 {[%clk 0:01:29]} 25. Bf5 {[%clk 0:01:17]}  Rc7 {[%clk 0:01:21]} 26. Nd4 {[%clk 0:01:17]}  g6 {[%clk 0:01:08]} 27. Bg4 {[%clk 0:01:17]}  Ne6 {[%clk 0:01:04]} 28. Bxe6 {[%clk 0:01:16]}  fxe6 {[%clk 0:01:05]} 29. f4 {[%clk 0:01:17]}  e5 {[%clk 0:01:02]} 30. fxe5 {[%clk 0:01:18]}  Rxe5 {[%clk 0:01:02]} 31. Raa1 {[%clk 0:01:07]}  Re4 {[%clk 0:01:01]} 32. Rad1 {[%clk 0:01:06]}  Bc8 {[%clk 0:00:35]} 33. Rd2 {[%clk 0:01:06]}  Kg7 {[%clk 0:00:35]} 34. Rf3 {[%clk 0:01:03]}  h5 {[%clk 0:00:33]} 35. c3 {[%clk 0:01:02]}  Bd7 {[%clk 0:00:25]} 36. Ra2 {[%clk 0:01:01]}  Bc8 {[%clk 0:00:24]} 37. Ra5 {[%clk 0:01:00]}  Re5 {[%clk 0:00:22]} 38. Kf2 {[%clk 0:00:55]}  Rce7 {[%clk 0:00:16]} 39. Kg3 {[%clk 0:00:51]}  g5 {[%clk 0:00:13]} 40. Nc6 {[%clk 0:00:50]}  h4+ {[%clk 0:00:13]} 41. Kh2 {[%clk 0:00:50]}  g4 {[%clk 0:00:13]} 42. hxg4 {[%clk 0:00:49]}  Bxg4 {[%clk 0:00:14]} 43. Rf4 {[%clk 0:00:48]}  Re4 {[%clk 0:00:13]} 44. Rxg4+ {[%clk 0:00:45]}  Rxg4 {[%clk 0:00:14]} 45. Nxe7 {[%clk 0:00:46]} 1-0


[Site "https://www.chess.com"]

[Event "Titled Tuesday Blitz November 01 Late 2022"]
[White "Krishnan, Varun"]
[Black "Sargsyan, Anna M."]
[WhiteFideId "5054508"]
[BlackFideId "13308130"]
[WhiteElo "2498"]
[BlackElo "2284"]
[Result "0-1"]
[Round "05"]
[TimeControl "180+1"]
[Date "2022.11.02"]
[WhiteClock "0:00:02"]
[BlackClock "0:00:47"]

1. d4 {[%clk 0:03:00]}  d5 {[%clk 0:02:58]} 2. c4 {[%clk 0:02:53]}  c6 {[%clk 0:02:58]} 3. Nf3 {[%clk 0:02:53]}  Nf6 {[%clk 0:02:58]} 4. Qc2 {[%clk 0:02:52]}  g6 {[%clk 0:02:57]} 5. g3 {[%clk 0:02:52]}  Bg7 {[%clk 0:02:57]} 6. Bg2 {[%clk 0:02:52]}  O-O {[%clk 0:02:58]} 7. O-O {[%clk 0:02:52]}  Bf5 {[%clk 0:02:58]} 8. Qb3 {[%clk 0:02:51]}  Qb6 {[%clk 0:02:57]} 9. c5 {[%clk 0:02:51]}  Qxb3 {[%clk 0:02:58]} 10. axb3 {[%clk 0:02:51]}  a6 {[%clk 0:02:58]} 11. Nc3 {[%clk 0:02:50]}  Nbd7 {[%clk 0:02:57]} 12. b4 {[%clk 0:02:50]}  Rfe8 {[%clk 0:02:53]} 13. Bf4 {[%clk 0:02:49]}  Nh5 {[%clk 0:02:52]} 14. Ne5 {[%clk 0:02:29]}  Nxf4 {[%clk 0:02:47]} 15. gxf4 {[%clk 0:02:29]}  Nf8 {[%clk 0:02:46]} 16. e3 {[%clk 0:02:23]}  Rad8 {[%clk 0:02:44]} 17. Rfe1 {[%clk 0:02:06]}  f6 {[%clk 0:02:44]} 18. Nf3 {[%clk 0:02:05]}  Nd7 {[%clk 0:02:40]} 19. Nh4 {[%clk 0:02:00]}  Be6 {[%clk 0:02:36]} 20. Bf1 {[%clk 0:01:54]}  Bf7 {[%clk 0:02:33]} 21. f5 {[%clk 0:01:49]}  Bh6 {[%clk 0:02:28]} 22. Bd3 {[%clk 0:01:47]}  Kg7 {[%clk 0:02:27]} 23. f4 {[%clk 0:01:43]}  e5 {[%clk 0:02:21]} 24. fxe6 {[%clk 0:01:40]}  Rxe6 {[%clk 0:02:18]} 25. Kf2 {[%clk 0:01:28]}  Rde8 {[%clk 0:02:18]} 26. Re2 {[%clk 0:01:24]}  R6e7 {[%clk 0:02:07]} 27. Rg1 {[%clk 0:01:21]}  Kh8 {[%clk 0:02:03]} 28. Nb1 {[%clk 0:01:16]}  Nf8 {[%clk 0:01:56]} 29. Nd2 {[%clk 0:01:07]}  Ne6 {[%clk 0:01:53]} 30. f5 {[%clk 0:01:00]}  Nxd4 {[%clk 0:01:37]} 31. fxg6 {[%clk 0:00:48]}  Nxe2 {[%clk 0:01:30]} 32. gxf7 {[%clk 0:00:30]}  Bxe3+ {[%clk 0:01:28]} 33. Kg2 {[%clk 0:00:16]}  Nxg1 {[%clk 0:01:21]} 34. fxe8=Q+ {[%clk 0:00:15]}  Rxe8 {[%clk 0:01:22]} 35. Nf1 {[%clk 0:00:14]}  Rg8+ {[%clk 0:01:19]} 36. Ng3 {[%clk 0:00:13]}  b6 {[%clk 0:00:59]} 37. cxb6 {[%clk 0:00:13]}  Bxb6 {[%clk 0:00:58]} 38. Nf5 {[%clk 0:00:12]}  Ra8 {[%clk 0:00:57]} 39. Ne7 {[%clk 0:00:09]}  a5 {[%clk 0:00:57]} 40. Nxc6 {[%clk 0:00:08]}  axb4 {[%clk 0:00:56]} 41. Nxb4 {[%clk 0:00:08]}  Ra5 {[%clk 0:00:51]} 42. Nc6 {[%clk 0:00:05]}  Ra2 {[%clk 0:00:50]} 43. Nb4 {[%clk 0:00:04]}  Rxb2+ {[%clk 0:00:50]} 44. Kh1 {[%clk 0:00:03]}  Rxb4 {[%clk 0:00:49]} 45. Nf5 {[%clk 0:00:02]}  Rb2 {[%clk 0:00:48]} 46. Nd6 {[%clk 0:00:02]}  Nf3 {[%clk 0:00:47]} 0-1


[Site "https://www.chess.com"]